Cogmind - Beta 16 @@@ ROGUE MODE // 2025.11.27 @ 18:18:54 // Winter2019/RPGLIKE Player: Torako Result: Destroyed by 10-15F(R) with Subdweller Machine Gun Performance ------------- Evolutions (0) 0 Regions Visited (2) 400 Robots Destroyed (24) 120 Value Destroyed (655) 655 Prototype IDs (0) 0 Alien Tech Used (0) 0 Bonus (0) 0 TOTAL SCORE: 1175 Bonus ------- None Cogmind --------- Core Integrity 0/600 Matter 290/300 Energy 275/275 System Corruption 2% Temperature Cool (0) Movement Hovering (56) Location -10/Subcaves Parts ------- > --- POWER (2) -------- Ion Engine Light Ion Engine > --- PROPULSION (2) --- Hover Unit Hover Unit > --- UTILITY (2) ------ Disposable Heat Sink Improved Terrain Scanner > --- WEAPON (2) ------- Medium Laser Subdweller Beam Cannon > --- INVENTORY (2) ---- Medium Laser Peak State ------------ > --- POWER ------------ Light Ion Engine Light Ion Engine > --- PROPULSION ------- Hover Unit Hover Unit > --- UTILITY ---------- Improved Heat Sink Improved Terrain Scanner > --- WEAPON ----------- Medium Laser Medium Laser > --- INVENTORY -------- Light Armor Plating [Rating: 12] Favorites ----------- Power Light Ion Engine Engine Light Ion Engine Propulsion Light Treads Treads Light Treads Leg Aluminum Leg Hover Unit Hover Unit Flight Unit Flight Unit Utility Improved Terrain Scanner Device Improved Terrain Scanner Protection Weapon Shielding Weapon Medium Laser Energy Gun Medium Laser Energy Cannon Subdweller Beam Cannon Ballistic Gun Assault Rifle Build | -11 -10 -10 ------- Run | Yrd Mat Sub Slots Evolved 4 | 4 . . Power 1 | 1 . . Propulsion 1 | 1 . . Utility 1 | 1 . . Weapon 1 | 1 . . Parts Attached 25 | 9 12 4 Power 5 | 2 2 1 Engine 5 | 2 2 1 Core . | . . . Reactor . | . . . Propulsion 8 | 2 6 . Treads 2 | 2 . . Leg 2 | . 2 . Wheel . | . . . Hover 2 | . 2 . Flight 2 | . 2 . Utility 7 | 3 2 2 Device 5 | 3 . 2 Storage . | . . . Processor . | . . . Hackware . | . . . Protection 2 | . 2 . Artifact . | . . . Weapon 5 | 2 2 1 Energy Gun 2 | . 2 . Energy Cannon 1 | . . 1 Ballistic Gun 2 | 2 . . Ballistic Cannon . | . . . Launcher . | . . . Special Weapon . | . . . Impact Weapon . | . . . Slashing Weapon . | . . . Piercing Weapon . | . . . Special Melee Weapon . | . . . Unidentified Prototypes . | . . . Parts Lost 1 | . 1 . Power . | . . . Propulsion 1 | . 1 . Utility . | . . . Weapon . | . . . Highest Loss Streak 1 | . 1 . To Critical Strikes . | . . . Average Backups . | . . 1 Power . | . . . Propulsion . | . . . Utility . | . . . Weapon . | . . . Tool/Special . | . . . Unused Backups . | . . . Power . | . . . Propulsion . | . . . Utility . | . . . Weapon . | . . . Tool/Special . | . . . Average Slot Usage (%) 97 | . 97 99 Engine 23 | . 23 25 Treads 8 | . 10 . Leg 3 | . 3 . Hover 8 | . 5 25 Flight 4 | . 4 . Device 15 | . 15 20 Protection 8 | . 9 3 Energy Gun 16 | . 15 21 Ballistic Gun 7 | . 8 . Peak Build Rating 12 | 10 10 12 Average Rating 9 | 6 9 11 On Entrance 6 | . 10 10 Avg Prop Armor Cover (%) 4 | . 4 . Naked Turns . | . . . Heaviest Build 20 | 13 14 20 Greatest Support 40 | 40 40 22 Greatest Overweight (x) 2 | . 2 . Average Overweight (x) . | . . . Largest Inventory Capacity 2 | . . 2 Average Capacity . | . . 1 Most Carried 2 | . . 2 Average Carried . | . . 1 Final Capacity 2 | . . 2 Final Carried 1 | . . 1 Class Distribution -------------------- 51% | Mutant 28% | Scavenger-Scout 19% | Scavenger-Mutant Dominant Class ---------------- Mutant | -10/Materials Scavenger-Scout | -10/Subcaves Resources | -11 -10 -10 ----------- Run | Yrd Mat Sub Matter Collected 630 | 314 262 54 Remotely 145 | 135 10 . Salvage Created 534 | 91 333 110 Parts 47 | 7 31 9 Haulers Intercepted . | . . . Recyclers Shooed 1 | 1 . . Parts Field Recycled . | . . . Retrieved Matter . | . . . Parts Self-Destructed . | . . . Prevented . | . . . Parts Restored . | . . . Kills | -11 -10 -10 ------- Run | Yrd Mat Sub Combat Hostiles Destroyed 19 | . 16 3 Guns 17 | . 15 2 Cannons 1 | . . 1 Classes Destroyed 8 | 2 5 1 Builder 1 | . 1 . Tunneler 1 | 1 . . Recycler 1 | 1 . . Operator 1 | . 1 . Watcher 1 | . 1 . Swarmer 3 | . 3 . Grunt 13 | . 13 . Subdweller 3 | . . 3 Best Kill Streak 4 | 2 4 1 Combat Bots Only 4 | . 4 1 Max Kills in Single Turn 1 | 1 1 1 Gunslinging . | . . . Exploded . | . . . Melee . | . . . Uniques/NPCs Destroyed . | . . . Combat | -11 -10 -10 -------- Run | Yrd Mat Sub Hostile Shots Fired 113 | . 70 43 Missed 31 | . 17 14 Hits 82 | . 53 29 Projectile 82 | . 53 29 AOE 3 | . . 3 Critical Strikes 2 | . . 2 Damage Taken 1380 | . 591 789 Core 1054 | . 440 614 Absorbed by Shields . | . . . Redirected to Core 766 | . 328 438 Redirected to Shielding 46 | . 46 . Core Remaining (%) 100 | 100 . . Volleys Fired 89 | 6 55 28 Largest 2 | 2 2 2 Hottest 130 | 40 100 130 Shots Fired 168 | 12 100 56 Gun 157 | 12 100 45 Cannon 11 | . . 11 Launcher . | . . . Special . | . . . Kinetic 36 | 12 24 . Thermal 132 | . 76 56 Explosive . | . . . Electromagnetic . | . . . Robot Hit Streak 16 | 6 11 16 Robot Miss Streak 3 | 1 3 3 Penetration Max . | . . . Secondary Targets 2 | . 2 . Max Gunslinging Chain 1 | . 1 . Shots Hit Robots 123 | 8 70 45 Core Hits 41 | 4 31 6 Critical Kills . | . . . Critical Parts Destroyed . | . . . Critical Strikes 6 | . 5 1 Burn 6 | . 5 1 Melee Attacks . | . . . Impact . | . . . Slashing . | . . . Piercing . | . . . Sneak Attacks . | . . . Combat Hostiles . | . . . Follow-up Attacks . | . . . Damage Inflicted 1440 | 79 981 380 Guns 1199 | 79 981 139 Cannons 241 | . . 241 Explosions . | . . . Melee . | . . . Ramming . | . . . Kinetic 387 | 79 308 . Thermal 1053 | . 673 380 Explosive . | . . . Electromagnetic . | . . . Impact . | . . . Slashing . | . . . Piercing . | . . . Highest Corruption 2 | . 2 2 Average Corruption 2 | . 2 2 Corruption Purged . | . . . Corruption Blocked . | . . . Effects 22 | . 17 5 Message Errors 7 | . 7 . Matter Fused 7 | . 4 3 Energy Discharges 2 | . 2 . Data Loss (minor) 3 | . 3 . Data Loss (major) 2 | . . 2 Alerts 1 | . 1 . Overload Shots . | . . . Overflow Damage . | . . . Projectiles . | . . . Explosions . | . . . Melee . | . . . Knockbacks . | . . . Impact . | . . . Kinetic . | . . . Secondary . | . . . Self-Inflicted Damage . | . . . Shots . | . . . Rammed . | . . . Targets Rammed . | . . . Kicked . | . . . Crushed . | . . . Highest Temperature 485 | 20 477 485 Average Temperature 148 | 9 139 291 Received Heat Transfer 932 | . 294 638 Effects 16 | . 12 4 Shutdowns 6 | . 5 1 Energy Bleed 2 | . 2 . Interference 4 | . 4 . Matter Decay 1 | . 1 . Damage (major) 3 | . . 3 Siege Activations . | . . . Martial Activations . | . . . Shielding Activations . | . . . Robots Disrupted . | . . . Combat Hostiles . | . . . Robots Corrupted . | . . . Combat Hostiles . | . . . Parts Fried . | . . . Impact Corruptions . | . . . Robots Melted 1 | . 1 . Combat Hostiles 1 | . 1 . Parts Melted 5 | . 3 2 Heat Transferred 3034 | . 2220 814 Parts Sabotaged . | . . . Parts Stolen . | . . . Parts Stripped . | . . . Power Chain Reactions . | . . . Alert | -11 -10 -10 ------- Run | Yrd Mat Sub Maximum Alert Level 1 | . 1 . Low Security (%) 71 | 100 69 . Level 1 28 | . 30 . Level 2 . | . . . Level 3 . | . . . Level 4 . | . . . Level 5 . | . . . High Security . | . . . Max Security . | . . . Peak Influence 291 | 10 291 . Initial . | . . . Average 108 | . 117 . Influence Increases 548 | 10 538 . Destroy 0b10 Robot/C 320 | . 320 . Destroy 0b10 Robot/NC 25 | 10 15 . Destroy Leader 72 | . 72 . Successful Hack 11 | . 11 . Select Force Hacks 60 | . 60 . Lose Combat Pursuer 60 | . 60 . Influence Decreases 545 | 10 281 254 Entered New Map 124 | . . 124 Time Decay 406 | 10 266 130 Lost Part 10 | . 10 . Purge Threat 5 | . 5 . Squads Dispatched 7 | . 7 . Investigation 4 | . 4 . Extermination . | . . . Reinforcement 3 | . 3 . Assault . | . . . Garrison . | . . . Intercept . | . . . Searches Triggered . | . . . Construction Impeded . | . . . Haulers Reinforced . | . . . Active Scanning Responses . | . . . Cargo Convoy Interrupts . | . . . Stealth | -11 -10 -10 --------- Run | Yrd Mat Sub Distress Signals 1 | . 1 . Communications Jammed . | . . . Distress Signals . | . . . Times Spotted 27 | . 22 5 Peak Tracking Total 4 | . 4 3 Tactical Retreats 4 | . 4 . Traps | -11 -10 -10 ------- Run | Yrd Mat Sub Traps Triggered 3 | . 3 . Indirectly . | . . . Trap Hack Attempts . | . . . Triggered . | . . . Disarmed . | . . . Reprogrammed . | . . . Reused . | . . . Traps Extracted . | . . . Installed . | . . . Triggered . | . . . Machines | -11 -10 -10 ---------- Run | Yrd Mat Sub Machines Disabled . | . . . Max in Single Turn . | . . . Machines Repaired . | . . . Machines Dismantled . | . . . Machines Sabotaged . | . . . Overloaded Fab Kills . | . . . Hacking | -11 -10 -10 --------- Run | Yrd Mat Sub Machines Accessed 7 | . 7 . Terminals 5 | . 5 . Fabricators . | . . . Repair Stations . | . . . Recycling Units 2 | . 2 . Scanalyzers . | . . . Garrison Access . | . . . Total Hacks 17 | . 17 . Successful 10 | . 10 . Failed 7 | . 7 . Catastrophic 1 | . 1 . Database Lockouts . | . . . Manual 7 | . 7 . Terminals 12 | . 12 . Fabricators . | . . . Repair Stations . | . . . Recycling Units 5 | . 5 . Scanalyzers . | . . . Garrison Access . | . . . Terminal Hacks 5 | . 5 . Robot Analysis 3 | . 3 . Unreport Threat 1 | . 1 . Hauler Manifests 1 | . 1 . Fabricator Hacks . | . . . Repair Station Hacks . | . . . Recycling Unit Hacks 3 | . 3 . Report Inventory 1 | . 1 . Retrieve Components 2 | . 2 . Scanalyzer . | . . . Garrison Access Hacks . | . . . Unauthorized Hacks 2 | . 2 . Terminals . | . . . Fabricators . | . . . Repair Stations . | . . . Recycling Units 2 | . 2 . Tunnel 2 | . 2 . Scanalyzers . | . . . Garrison Access . | . . . Data Cores Recovered . | . . . Used . | . . . Hacking Detections 5 | . 5 . Full Trace Events 1 | . 1 . Feedback Events . | . . . Feedback Blocked . | . . . Robot Schematics Acquired . | . . . Robots Built . | . . . Authchips . | . . . Time . | . . . Total Robot Build Rating . | . . . Part Schematics Acquired . | . . . Parts Built . | . . . Authchips . | . . . Time . | . . . Total Part Build Rating . | . . . Part Studies Acquired . | . . . Parts Repaired . | . . . Time . | . . . Parts Recycled . | . . . Recycled Matter . | . . . Retrieved Matter . | . . . Retrieved Components 19 | . 19 . Parts Scanalyzed . | . . . Part Schematics Acquired . | . . . Parts Damaged . | . . . Bothacking | -11 -10 -10 ------------ Run | Yrd Mat Sub Used RIF Installer . | . . . Robots Hacked . | . . . Non-combat . | . . . Combat . | . . . Robot Hacks Applied . | . . . Relay Couplers Released . | . . . Fabnet Peak Effective % . | . . . Robots Rewired . | . . . Allies Hacked . | . . . Hacks Repelled . | . . . Allies | -11 -10 -10 -------- Run | Yrd Mat Sub Total Allies . | . . . Largest Group . | . . . Highest-Rated Group . | . . . Highest-Rated Ally . | . . . Total Orders . | . . . Ally Attacks . | . . . Total Damage . | . . . Kills . | . . . Allies Corrupted . | . . . Allies Melted . | . . . Intel | -11 -10 -10 ------- Run | Yrd Mat Sub Active Infowar (turns) 1452 | 60 1126 266 Terrain 1446 | 54 1126 266 Seismic 8 | 8 . . Robot Analysis Total 3 | . 3 . Derelict Logs Recovered 2 | . . 2 Drone Launches . | . . . Drone Recoveries . | . . . Exploration | -11 -10 -10 ------------- Run | Yrd Mat Sub Turns Passed 1706 | 119 1321 266 Spaces Moved 1255 | 59 914 282 Core 5 | 5 . . Treads 381 | 54 327 . Legs 150 | . 150 . Wheels . | . . . Hover 625 | . 343 282 Flight 94 | . 94 . Fastest Speed 50 | 50 56 56 Average Speed 103 | 150 114 56 Slowest Speed 200 | 160 200 56 Overloaded Moves . | . . . Propulsion Burnouts . | . . . Robots Hopped . | . . . Potential Cave-ins . | . . . Cave-ins Triggered . | . . . Exploration Rate (%) 40 | 6 98 17 Regions Visited 2 Branch Regions 1 Pre-discovered Areas 2 | . 2 . Known Exits Taken . | . . . Unknown Exits Taken 2 | 1 1 . Scrap Searched . | . . . Spaces Dug . | . . . Terrain Destroyed . | . . . Melee . | . . . Projectile . | . . . AOE . | . . . Terrain Rammed . | . . . Walls Destroyed . | . . . Machines Disabled . | . . . Actions | -11 -10 -10 --------- Run | Yrd Mat Sub Total 1494 | 74 1085 335 Wait 80 | . 65 15 Move 1253 | 58 913 282 Hop . | . . . Pick Up . | . . . Fast Attach 24 | 9 12 3 Attach . | . . . Detach 3 | . . 3 Swap 2 | . 1 1 Drop 16 | 1 12 3 Fire 89 | 6 55 28 Melee . | . . . Ram . | . . . Kick . | . . . Crush . | . . . Escape Stasis . | . . . Rewire . | . . . Trap . | . . . Miscellaneous 27 | . 27 . Route ------- -11/Scrapyard -10/Materials (discovered 5 exits: [*Mat x3] / [*Min] / [*Sub]) -10/Subcaves (discovered 1 exit: Rec) History --------- Turn | Location | Event 1 | -11/Scrapyard | Upgraded with Power slot (x1) 1 | -11/Scrapyard | Upgraded with Propulsion slot (x1) 1 | -11/Scrapyard | Upgraded with Utility slot (x1) 1 | -11/Scrapyard | Upgraded with Weapon slot (x1) 3 | -11/Scrapyard | Discovered new exit (range 15) 120 | -11/Scrapyard | Entered Materials 121 | -10/Materials | Met a group of wandering Federalists 206 | -10/Materials | Discovered new exit (range 16) 303 | -10/Materials | Discovered new exit (range 9) 313 | -10/Materials | Build established: Mutant 619 | -10/Materials | Discovered new exit (range 8) 765 | -10/Materials | Discovered new exit (range 16) 826 | -10/Materials | Discovered new exit (range 16) 947 | -10/Materials | Reached level 2 1441 | -10/Materials | Entered Subcaves 1442 | -10/Subcaves | Continued accompanying wandering Federalists (4) 1442 | -10/Subcaves | Approached by a straggling Scientist 1443 | -10/Subcaves | Reached level 3 1498 | -10/Subcaves | Lost 4 allies 1543 | -10/Subcaves | Build established: Scavenger-Scout 1561 | -10/Subcaves | A swath of the cavern ceiling suddenly collapsed 1568 | -10/Subcaves | Learned 2 Materials zone layouts 1582 | -10/Subcaves | Shifting Twisted Machinery released Mak. Hacking Suite 1643 | -10/Subcaves | Identified exit to Recycling 1675 | -10/Subcaves | Disturbed a concealed Subdweller 1676 | -10/Subcaves | Core integrity fell below 50% 1693 | -10/Subcaves | Core integrity fell below 20% 1707 | -10/Subcaves | Destroyed by 10-15F(R) with Subdweller Machine Gun Last Messages --------------- Dropped Lgt. Armor Plating. Dropped Imp. Heat Sink. Acquired Sub. Beam Cannon. Subatomizers dissect the Salvaging Laser. Acquired 10 matter. System corrupted: Matter fused (-6). Acquired 6 matter. Acquired derelict log, extracted data. Loading 1 Subcaves exit... 4T-BV1(c): "I think it's somewhere northeast of here" System corrupted: Matter fused (-10). System corrupted: Substantial component data lost. ST-T4O(u) builds Twisted Machinery. 7Z-GIC(R) angrily emerges from the Twisted Machinery. LS-56N(R) suffers critical hit (Burn). 7Z-GIC(R) affixes Scrap Shield Fragment to Scrap Shield. 4T-BV1(c) destroyed. Sub. Monowheel melted. 7Z-GIC(R) destroyed. System corrupted: Substantial component data lost. Map ----- +----------------------------------------------------+ | # ###???#??????????????????????????????????????? | | ####?##?##????#?????????????????????????????? | | ###?##???????????????????????????????????? | | ##??????#?????????????????????????????????? | | ##????#???????????????????????????????????? | | ######???????##??????????????????????????????? | | #####???????#???????????????????????????????? | | #"""#?????#???????????????????????????????????? | | #"#"####??#????????????????????????????????????? | | #"########?###??????????????????????????????????? | | "## " ##?##??????????#??? ??????????????????????? | | !"# # ####?????#?? ##??## ? ?????????????????????? | | !### # #? ??????? ???? ????? ??? ???????????????? | | "## "# #?? ?????????? ? ????? ????????????????? | | ###"" ##?? ??#??????? ?? ??# ???????????????? | | ""?"# ""###? ?????"??? ????? # ?#?##???????????? | | "?# # #### ??#?#??"uR" ##?? ?##??#???????????? | | ## ###### ? ##??? """ ### ? #??##???????????? | | ########## """"#??##" "" # ? #???????????????? | | # "####???# """"###??"""" # "##" ###??##?????????? | | # ##?###?? " " #??? """" """#??????????????? | | #" ##???#?### ""#?### #? #?#???""????????? | | #" ##?#???#???# "### ; #?# ###??# ""????????? | | ####????????# " #;; ### # # """????????? | | ####?##?### ; ;# ""????????? | | ## #??##????### %= @ R " ???????? | | ?## ############ ####????? ????????? | | ### ### ##### ;#?##??????????????? | | ## ## ### ;;#######????????????? | | ;####?##?#?#?????????? | | ##?#?#??# ? ?????????? | | ## ; ????? ????????????? | | # ##### #### $ ???#? "????????? | | # #?#?## ##??# # $$%& ? ??????????????? | | ##??######?## ## &&# # ## ??# ??????????? | | #??#??????#?# ###% ###? ##?? ??????????? | | # #??#????#??#? ?? ##?#? ?#??????????????? | | # ######?#? ? #? ???????? ???????????? | | # #?#? ? ? ? ? ? ? ? ?#?????????????? | | ##### #??? ? ? ????? ?????????????????? | | #??## #??????? ??? ? ?? ???? ?????????????? | | #???## ##???# ?? ?# ???????????????????????? | | #???########??????? ?? #?????????????????????? | | #??##?##?????????? ???????????????????????????? | | # ##?#?????#???? ????????????????????????????????? | | ###?#?##?????????????????????????????????????????? | | ??#????###???????????????????????????????????????? | | ##????#?#??#?????????????????????????????????????? | | ?#??#????????????????????????????????????????????? | | ?????????????????????????????????????????????????? | +----------------------------------------------------+ Best States ------------- Heat Dissipation 37 Coolant Potential 50 Energy Generation 15 Energy Capacity 275 Matter Stores 300 Matter Capacity 300 Sight Range 18 Robot Scan Range 14 Terrain Scan Range 16 Terrain Scan Density 110 Armor Coverage 150 Weapon Shielding 33 Evasion (%) 55 Recoil Reduction 2 Offensive Hacking 5 Item Schematics ----------------- None Robot Schematics ------------------ None Fabricated ------------ Nothing Repaired ---------- Nothing Studied --------- None Alien Tech Used ----------------- None Achievements -------------- Strength In Numbers Challenges ------------ None RPGLIKE | -11 -10 -10 --------- Run | Yrd Mat Sub Levels Raised 2 | . 1 1 XP Earned 6280 | 3000 2280 1000 XP Spent 5995 | 2950 1420 1625 Upgrades 23 | 7 7 9 Power Slot 1 | 1 . . Propulsion Slot 1 | 1 . . Utility Slot 1 | 1 . . Weapon Slot 1 | 1 . . Heat Dissipation 2 | . 2 . Mass Support 2 | . 2 . Inventory Capacity 2 | . . 2 Sight Range 2 | . 2 . Sensor Range 7 | . . 7 Terrain Scan Density 1 | 1 . . Ranged Accuracy 2 | 2 . . Hack Attack % 1 | . 1 . Protomatter Created 388 | . 350 38 Integrity Restored 556 | . 556 . Core 440 | . 440 . Parts 116 | . 116 . Protomatter Decayed 134 | . 134 . Game ------ Seed RelayGunImmobilizer Manual? 0 Play Time 00:18:24 Cumulative 355.8 hours Start 2025.11.27 @ 18:03:24 End 2025.11.27 @ 18:18:54 Sessions 1 Manual Loads 0 Difficulty Rogue Special Mode Winter2019/RPGLIKE Game No. 351 Rogue 351 Adventurer 0 Explorer 0 Win Type - Total 25 Types 19/0/4/2/0/0/0/0/0/0 Lore% 69 Gallery% 75 Achievement% 46 Wizard Run 0 Options --------- Layout 0 ASCII 0 Keyboard 1 Movement Numpad Keybinds 0 Fullscreen 1 Font 18/SmallcapsGlow Map View 76x50 Zoom Use 0% Tactical HUD 1 Map Filters NONE Filters NONE Steam 1 RUN: 765796b5-b6fc-47a0-a06d-2ad1fb86f810